fUST/lending_fUST_20260701
["ID","MTS","AMOUNT","RATE_DAILY","PERIOD"]
[426796464,1782835290000,200.0,0.0002975,120]
[426796465,1782835350000,200.0,0.00028663,120]
[426796466,1782835410000,200.0,0.00030097,120]
[426796470,1782835438000,542.42,0.00028931,60]
[426796469,1782835438000,542.42,0.00028931,60]
[426796468,1782835438000,542.42,0.00028931,60]
[426796467,1782835438000,542.42,0.00028931,60]
[426796471,1782835439000,542.42,0.00028931,60]
[426796477,1782835590000,200.0,0.0002974,120]
[426796481,1782835620000,25067.0,0.00030137,30]
[426796490,1782835788000,500.0,0.00030136,30]
[426796545,1782835833000,-76.4980339,0.00020789,7]
[426796541,1782835833000,-2723.05696657,0.00020171,2]
[426796547,1782835833000,-708.95864179,0.00020789,7]
[426796549,1782835833000,-290.75723819,0.000209,2]
[426796543,1782835833000,-2276.94303343,0.00020171,2]
[426796625,1782835838000,-18756.81909433,0.0002465,2]
[426796604,1782835838000,-2048.79997232,0.000209,2]
[426796606,1782835838000,-1411.97307222,0.000209,2]
[426796608,1782835838000,-1417.92137372,0.000209,2]
[426796614,1782835838000,-45365.75443327,0.00021,2]
[426796620,1782835838000,-429.022573,0.00023499,2]
[426796623,1782835838000,-429.022573,0.00024488,2]
[426796616,1782835838000,-191.2891342,0.00021,2]
[426796621,1782835838000,-587.82844932,0.00023552,2]
[426796612,1782835838000,-12410.18599551,0.00021,2]
[426796618,1782835838000,-3709.545991,0.00022262,2]
[426796627,1782835838000,-429.022573,0.00025478,2]
[426796610,1782835838000,-500.0,0.00020999,2]
[426796634,1782835838000,-199.47,0.00027397,2]
[426796645,1782835838000,-197.0,0.00028,2]
[426796648,1782835838000,-158.36002238,0.0002856,7]
[426796650,1782835838000,-170.85953446,0.0002856,7]
[426796641,1782835838000,-288.0,0.00028,2]
[426796640,1782835838000,-154.0,0.00028,2]
[426796647,1782835838000,-429.022573,0.00028445,2]
[426796635,1782835838000,-429.022573,0.00027456,2]
[426796637,1782835838000,-1037.13993747,0.00028,7]
[426796630,1782835838000,-224.6270284,0.00027104,2]
[426796629,1782835838000,-429.022573,0.00026467,2]
[426796636,1782835838000,-158.36002238,0.00028,7]
[426796643,1782835838000,-205.0,0.00028,2]
[426796632,1782835838000,-410.8293714,0.00027106,2]
[426796686,1782835849000,-154.0,0.00029,2]
[426796687,1782835849000,-282.15591885,0.00029,2]
[426796682,1782835849000,-269.185,0.00028609,2]
[426796684,1782835849000,-186.0,0.00028609,2]
[426796683,1782835849000,-858.994,0.00028609,2]
[426796681,1782835849000,-785.45606812,0.0002856,7]
[426796680,1782835849000,-866.28040301,0.0002856,7]
[426796685,1782835849000,-446.0,0.00028609,2]
[426796696,1782836297000,692.72,0.00030137,30]
[426796700,1782836535000,-5000.0,0.00020278,2]
[426796701,1782836543000,-5000.0,0.00020493,2]
[426796703,1782836549000,-6505.07086068,0.000208,2]
[426796702,1782836549000,-166.66666666,0.000207,2]
[426796704,1782836575000,-166.66666666,0.00020592,2]
[426796705,1782836580000,-4833.33333334,0.00020592,2]
[426796706,1782836586000,-5000.0,0.00020592,2]
[426796707,1782836624000,20214.52151259,0.000279,120]
[426796712,1782836718000,-232.69300112,0.00020386,2]
[426796713,1782836721000,-2004.40242105,0.00020592,2]
[426796714,1782836725000,-330.34729422,0.000209,7]
[426796760,1782837032000,-880.18020744,0.00025312,2]
[426796754,1782837032000,-330.34729425,0.00023408,7]
[426796756,1782837032000,-495.10136668,0.00024196,2]
[426796758,1782837032000,-1014.0,0.00025,6]
[426796751,1782837032000,-251.5280882,0.00022627,2]
[426796743,1782837032000,-4730.91275417,0.00020894,2]
[426796749,1782837032000,-330.34729422,0.00022572,7]
[426796745,1782837032000,-330.34729422,0.00021318,7]
[426796747,1782837032000,-330.34729422,0.00021945,7]
[426796736,1782837032000,-269.08724583,0.00020894,2]
[426796762,1782837032000,-500.0,0.00025451,2]
[426796752,1782837032000,-275.05631482,0.0002308,2]
[426796764,1782837032000,-225.94152831,0.00025451,2]
[426796795,1782837032000,-163.77492096,0.00025451,2]
[426796770,1782837032000,-500.0,0.00025451,2]
[426796766,1782837032000,-500.0,0.00025451,2]
[426796793,1782837032000,-336.22507904,0.00025451,2]
[426796788,1782837032000,-500.0,0.00025451,2]
[426796791,1782837032000,-428.60305595,0.00025451,2]
[426796786,1782837032000,-500.0,0.00025451,2]
[426796784,1782837032000,-500.0,0.00025451,2]
[426796797,1782837032000,-286.81605074,0.00025451,2]
[426796782,1782837032000,-379.83632264,0.00025451,2]
[426796780,1782837032000,-500.0,0.00025451,2]
[426796778,1782837032000,-500.0,0.00025451,2]
[426796773,1782837032000,-500.0,0.00025451,2]
[426796776,1782837032000,-500.0,0.00025451,2]
[426796775,1782837032000,-500.0,0.00025451,2]
[426796876,1782837038000,-1375.28157412,0.00026428,2]
[426796878,1782837038000,-2443.576405,0.00026526,2]
[426796872,1782837038000,-197.85093969,0.000264,2]
[426796874,1782837038000,-197.85093968,0.000264,2]
[426796851,1782837038000,-213.18394926,0.00025451,2]
[426796870,1782837038000,-5455.7092172,0.00026149,2]
[426796853,1782837038000,-500.0,0.00025451,2]
[426796855,1782837038000,-500.0,0.00025451,2]
[426796857,1782837038000,-500.0,0.00025451,2]
[426796861,1782837038000,-500.0,0.00025451,2]
[426796859,1782837038000,-500.0,0.00025451,2]
[426796863,1782837038000,-414.99982573,0.00025451,2]
[426796866,1782837038000,-500.0,0.00025451,2]
[426796865,1782837038000,-500.0,0.00025451,2]
[426796895,1782837038000,-3028.14134611,0.00028,5]
[426796881,1782837038000,-1980.40546673,0.00027544,2]
[426796893,1782837038000,-2443.576405,0.00027597,2]
[426796890,1782837038000,-101.77773924,0.00027595,2]
[426796892,1782837038000,-500.0,0.00027595,2]
[426796897,1782837038000,-7502.63765027,0.00028,5]
[426796885,1782837038000,-468.56763652,0.00027595,2]
[426796883,1782837038000,-500.0,0.00027595,2]
[426796868,1782837038000,-2443.576405,0.00025454,2]
[426796880,1782837038000,-193.691988,0.00027344,2]
[426796888,1782837038000,-189.9985559,0.00027595,2]
[426796926,1782837039000,-187.0,0.00029,2]
[426796901,1782837039000,-274.0,0.00028,2]
[426796903,1782837039000,-195.0,0.00028,2]
[426796905,1782837039000,-187.0,0.00028,2]
[426796907,1782837039000,-719.20137309,0.00028622,5]
[426796909,1782837039000,-2695.55188527,0.0002866,2]
[426796911,1782837039000,-2443.576405,0.00028669,2]
[426796915,1782837039000,-200.576,0.00028847,2]
[426796899,1782837039000,-154.0,0.00028,2]
[426796917,1782837039000,-446.0,0.00028847,2]
[426796932,1782837039000,-5020.93298365,0.00029198,2]
[426796930,1782837039000,-401.26044436,0.00029198,5]
[426796934,1782837039000,-9826.27729744,0.00029198,2]
[426796921,1782837039000,-154.0,0.00029,2]
[426796913,1782837039000,-171.424,0.00028847,2]
[426796923,1782837039000,-274.0,0.00029,2]
[426796925,1782837039000,-195.0,0.00029,2]
[426796919,1782837039000,-2216.0,0.00028847,2]
[426796928,1782837039000,-361.71776622,0.00029198,5]
[426797892,1782837047000,-598.69510852,0.00025197,2]
[426797934,1782837047000,-13138.9539605,0.00029198,2]
[426797939,1782837047000,-4106.00475397,0.00029198,2]
[426797936,1782837047000,-4106.00475397,0.00029198,2]
[426797942,1782837047000,-2127.00637427,0.00029198,2]
[426797944,1782837047000,-1978.9983797,0.00029198,2]
[426797930,1782837047000,-809.93223765,0.00025197,2]
[426797932,1782837047000,-187.154702,0.00028438,2]
[426797928,1782837047000,-2920.14893782,0.00025197,2]
[426797946,1782837047000,-137.08631663,0.00029198,2]
[426797940,1782837047000,-4106.00475397,0.00029198,2]
[426799102,1782838232000,-3423.33590817,0.00020592,7]
[426799103,1782838232000,-2227.66306364,0.00021004,7]
[426799165,1782838238000,-151.0,0.00021572,2]
[426799163,1782838238000,-1195.67284453,0.00021004,7]
[426799167,1782838238000,-300.0,0.00021621,2]
[426799173,1782838238000,-500.0,0.00023055,2]
[426799171,1782838238000,-3423.33590817,0.00022239,7]
[426799175,1782838238000,-269.844784,0.00023055,2]
[426799169,1782838238000,-3423.33590817,0.00021622,7]
[426799179,1782838239000,-323.88886953,0.00023055,2]
[426799177,1782838239000,-153.31514696,0.00023055,2]
[426799184,1782838239000,-168.692121,0.00025318,2]
[426799181,1782838239000,-3423.33590817,0.00023063,7]
[426799182,1782838239000,-266.30880444,0.00025,5]
[426799186,1782838239000,-158.0,0.00027471,10]
[426799190,1782838239000,-157.0,0.00027877,3]
[426799188,1782838239000,-166.0,0.00027877,3]
[426799194,1782838239000,-246.0,0.00028,2]
[426799192,1782838239000,-155.0,0.00028,2]
[426799198,1782838239000,-169.0,0.00028,2]
[426799196,1782838239000,-175.0,0.00028,2]
[426799211,1782838239000,-88.63200876,0.000289,2]
[426799207,1782838239000,-186.0,0.00028816,2]
[426799205,1782838239000,-483.162,0.00028816,2]
[426799202,1782838239000,-754.5842647,0.00028184,2]
[426799203,1782838239000,-157.84,0.00028298,2]
[426799209,1782838239000,-446.0,0.00028816,2]
[426799200,1782838239000,-814.525468,0.0002805,2]
[426800246,1782838247000,-584.73,0.000289,2]
[426800252,1782838247000,-377.07,0.0002899,3]
[426800258,1782838247000,-50913.31062467,0.00029,2]
[426800257,1782838247000,-527.99734556,0.00028999,2]
[426800256,1782838247000,-500.0,0.00028999,2]
[426800254,1782838247000,-565.63,0.0002899,3]
[426800253,1782838247000,-188.54,0.0002899,3]
[426800259,1782838247000,-1847.02037181,0.00029,2]
[426800255,1782838247000,-204.2434066,0.00028999,2]
[426800251,1782838247000,-5185.24166103,0.000289,2]
[426800326,1782838250000,-2913.002259,0.00029,2]
[426800345,1782838347000,351.22211241,0.00029202,120]
[426800344,1782838347000,290.87496504,0.00029202,110]
[426800343,1782838347000,351.22211241,0.00029202,120]
[426800346,1782838348000,351.22211241,0.00029202,120]
[426800348,1782838348000,351.22211241,0.00029202,120]
[426800347,1782838348000,351.22211241,0.00029202,120]
[426800349,1782838349000,351.22211241,0.00029202,120]
[426800351,1782838349000,351.22211241,0.00029202,120]
[426800350,1782838349000,351.22211241,0.00029202,120]
[426800353,1782838350000,351.22211241,0.00029202,120]
[426800352,1782838350000,351.22211241,0.00029202,120]
[426800354,1782838350000,351.22211241,0.00029202,120]
[426800357,1782838351000,351.22211241,0.00029202,120]
[426800356,1782838351000,351.22211241,0.00029202,120]
[426800355,1782838351000,351.22211241,0.00029202,120]
[426800358,1782838467000,175.61105621,0.00029202,120]
[426800361,1782838577000,306.27608265,2.01e-05,2]
[426800363,1782838591000,417.15472785,0.00029202,30]
[426800364,1782838625000,431.0943126,0.00010618,2]
[426800365,1782838634000,322.48143924,0.00015,2]
[426800366,1782838643000,9516.09204137,0.00013,2]
[426800368,1782838650000,254.44880625,0.00015,2]
[426800369,1782838652000,24769.16656535,7.6e-05,2]
[426800370,1782838656000,11381.39155893,0.0001,2]
[426800371,1782838660000,43436.76532357,0.00012,2]
[426800372,1782838660000,3494.75906826,0.0001,2]
[426800373,1782838663000,768.10626741,8.6e-05,2]
[426800433,1782839432000,-761.24822556,0.0001683,2]
[426800434,1782839432000,-77.25601949,0.0001683,2]
[426800432,1782839432000,-369.31870419,0.0001683,2]
[426800436,1782839432000,-9218.31218202,0.00017,2]
[426800437,1782839432000,-1707.3525378,0.00017,2]
[426800435,1782839432000,-612.52956093,0.00017,2]
[426800431,1782839432000,-358.64947627,0.00015594,14]
[426800499,1782839438000,-1326.51012597,0.00017,2]
[426800501,1782839438000,-449.02770207,0.00018,2]
[426800748,1782839440000,-1290.43406414,0.00021,2]
[426800746,1782839440000,-178.04,0.00018442,2]
[426800744,1782839440000,-1740.95406237,0.00018,2]
[426801470,1782839447000,-311.23990932,0.00021,2]
[426801467,1782839447000,-2314.7503587,0.00021,2]
[426802702,1782839683000,-242.45961836,0.00016825,7]
[426802703,1782839683000,-115.08076328,0.00017815,7]
[426802705,1782839723000,242.45961836,0.00016495,7]
[426802710,1782840497000,-755.60544473,0.00016495,7]
[426802717,1782840631000,-577.50745973,0.00016825,7]
[426802716,1782840631000,-95.49254027,0.00016495,7]
[426802726,1782840632000,-129.60652001,0.0002079,2]
[426802720,1782840632000,-1093.55760336,0.0001732,7]
[426802724,1782840632000,-1093.5576034,0.00018474,7]
[426802722,1782840632000,-1093.55760336,0.00017815,7]
[426802718,1782840632000,-516.05014363,0.00016825,7]
[426803654,1782840646000,-620.70687363,0.0002079,2]
[426803656,1782840646000,-1603.60996508,0.00021,2]
[426803655,1782840646000,-5.2912263,0.0002079,2]
[426803657,1782840646000,-902.01260473,0.000215,2]
[426803659,1782840646000,-3124.0,0.00025,2]
[426803665,1782840646000,-3520.72082975,0.00027455,2]
[426803661,1782840646000,-3085.3880063,0.00025931,2]
[426803658,1782840646000,-193.6919885,0.00024882,2]
[426803663,1782840646000,-157.99506652,0.00027019,3]
[426803660,1782840646000,-680.9524463,0.00025173,2]
[426803664,1782840646000,-248.60866429,0.00027121,7]
[426803666,1782840646000,-124.08620204,0.00027455,2]
[426803662,1782840646000,-166.0,0.00027019,3]
[426803667,1782840768000,-4327.37018581,0.00026082,2]
[426803668,1782840799000,23352.71840623,0.00029196,30]
[426803675,1782841038000,241.7093499,0.00027736,30]
[426803676,1782841039000,241.70935,0.00026276,30]
[426803677,1782841055000,269.4931175,0.00027732,30]
[426803680,1782841416000,10000.0,0.000301,30]
[426803779,1782841833000,-683.4,0.00027454,7]
[426803773,1782841833000,-1644.45998943,0.00020906,2]
[426803775,1782841833000,-179.35500449,0.00022882,5]
[426803777,1782841833000,-500.0,0.00027454,2]
[426803781,1782841833000,-196.2828903,0.00027558,2]
[426803783,1782841833000,-300.0,0.00027899,2]
[426803785,1782841833000,-274.2346,0.000279,2]
[426803793,1782841833000,-702.26493895,0.00028,2]
[426803787,1782841833000,-276.4,0.000279,2]
[426803789,1782841833000,-156.0,0.00028,2]
[426803790,1782841833000,-292.0,0.00028,2]
[426803791,1782841833000,-193.0,0.00028,2]
[426803792,1782841833000,-255.0,0.00028,2]
[426803872,1782841838000,-795.37236972,0.00028816,2]
[426803870,1782841838000,-447.39695797,0.00028816,2]
[426803879,1782841838000,-151.0,0.00028899,7]
[426803874,1782841838000,-331.57124368,0.00028816,2]
[426803889,1782841838000,-500.0,0.00028998,7]
[426803891,1782841838000,-500.0,0.00028998,2]
[426803893,1782841838000,-219.59814189,0.00028998,2]
[426803885,1782841838000,-188.53,0.0002899,3]
[426803895,1782841838000,-500.0,0.00028998,7]
[426803897,1782841838000,-504.41357142,0.00028998,7]
[426803887,1782841838000,-565.63,0.0002899,3]
[426803883,1782841838000,-219.71,0.00028965,5]
[426803868,1782841838000,-248.55386554,0.00028816,2]
[426803862,1782841838000,-255.3260695,0.000282,2]
[426803860,1782841838000,-250.0,0.00028022,2]
[426803902,1782841838000,-500.0,0.00028998,7]
[426803858,1782841838000,-150.93,0.00028022,2]
[426803864,1782841838000,-306.50239408,0.00028816,2]
[426803851,1782841838000,-186.0,0.00028022,2]
[426803866,1782841838000,-255.41866173,0.00028816,2]
[426803856,1782841838000,-150.0,0.00028022,2]
[426803847,1782841838000,-1355.34,0.00028022,2]
[426803849,1782841838000,-446.0,0.00028022,2]
[426803843,1782841838000,-1242.32454009,0.00028,2]
[426803845,1782841838000,-1844.0,0.00028022,2]
[426803881,1782841838000,-8669.18527715,0.00028899,2]
[426803900,1782841838000,-500.0,0.00028998,7]
[426803876,1782841838000,-269.185,0.00028816,2]
[426803905,1782841838000,-500.0,0.00028998,7]
[426803968,1782841838000,-683.4,0.00028999,7]
[426803899,1782841838000,-500.0,0.00028998,7]
[426803966,1782841838000,-683.4,0.00028999,7]
[426803964,1782841838000,-683.4,0.00028999,7]
[426803962,1782841838000,-683.4,0.00028999,7]
[426803960,1782841838000,-683.4,0.00028999,7]
[426803958,1782841838000,-683.4,0.00028999,7]
[426803947,1782841838000,-683.4,0.00028999,7]
[426803951,1782841838000,-683.4,0.00028999,7]
[426803957,1782841838000,-683.4,0.00028999,7]
[426803945,1782841838000,-683.4,0.00028999,7]
[426803955,1782841838000,-683.4,0.00028999,7]
[426803943,1782841838000,-140.6018538,0.00028999,7]
[426803949,1782841838000,-683.4,0.00028999,7]
[426803953,1782841838000,-683.4,0.00028999,7]
[426803922,1782841838000,-500.0,0.00028999,2]
[426803906,1782841838000,-500.0,0.00028999,2]
[426803926,1782841838000,-683.4,0.00028999,7]
[426803912,1782841838000,-500.0,0.00028999,2]
[426803916,1782841838000,-500.0,0.00028999,2]
[426803910,1782841838000,-500.0,0.00028999,2]
[426803914,1782841838000,-500.0,0.00028999,2]
[426803908,1782841838000,-500.0,0.00028999,2]
[426803920,1782841838000,-500.0,0.00028999,2]
[426803924,1782841838000,-531.92035547,0.00028999,2]
[426803930,1782841838000,-542.7981462,0.00028999,7]
[426803928,1782841838000,-683.4,0.00028999,7]
[426803918,1782841838000,-500.0,0.00028999,2]
[426803998,1782841839000,-404.757314,0.00028999,7]
[426804005,1782841839000,-404.757314,0.00028999,7]
[426804006,1782841839000,-404.757314,0.00028999,7]
[426804011,1782841839000,-404.757314,0.00028999,7]
[426804009,1782841839000,-404.757314,0.00028999,7]
[426804030,1782841839000,-151.0,0.00028999,7]
[426804015,1782841839000,-404.757314,0.00028999,7]
[426804017,1782841839000,-404.757314,0.00028999,7]
[426804019,1782841839000,-404.757314,0.00028999,7]
[426804032,1782841839000,-151.0,0.00028999,7]
[426804002,1782841839000,-404.757314,0.00028999,7]
[426804013,1782841839000,-404.757314,0.00028999,7]
[426803992,1782841839000,-151.0,0.00028999,7]
[426803970,1782841839000,-683.4,0.00028999,7]
[426803996,1782841839000,-151.0,0.00028999,7]
[426803994,1782841839000,-404.757314,0.00028999,7]
[426803991,1782841839000,-151.0,0.00028999,7]
[426803988,1782841839000,-151.0,0.00028999,7]
[426803984,1782841839000,-151.0,0.00028999,7]
[426803986,1782841839000,-151.0,0.00028999,7]
[426803982,1782841839000,-683.56,0.00028999,7]
[426803980,1782841839000,-683.4,0.00028999,7]
[426803976,1782841839000,-683.4,0.00028999,7]
[426803978,1782841839000,-683.4,0.00028999,7]
[426803972,1782841839000,-683.4,0.00028999,7]
[426803974,1782841839000,-683.4,0.00028999,7]
[426804021,1782841839000,-404.757314,0.00028999,7]
[426804000,1782841839000,-215.33185,0.00028999,7]
[426804029,1782841839000,-404.757314,0.00028999,7]
[426804084,1782841839000,-113484.23867399,0.00029,2]
[426804026,1782841839000,-404.757314,0.00028999,7]
[426804086,1782841839000,-35874.3921675,0.00029,2]
[426804088,1782841839000,-111789.52263345,0.00029,2]
[426804066,1782841839000,-500.0,0.00028999,7]
[426804063,1782841839000,-500.0,0.00028999,7]
[426804082,1782841839000,-418.56951288,0.00028999,7]
[426804074,1782841839000,-500.0,0.00028999,7]
[426804070,1782841839000,-500.0,0.00028999,7]
[426804064,1782841839000,-500.0,0.00028999,7]
[426804076,1782841839000,-500.0,0.00028999,7]
[426804061,1782841839000,-500.0,0.00028999,7]
[426804022,1782841839000,-404.757314,0.00028999,7]
[426804078,1782841839000,-500.0,0.00028999,7]
[426804068,1782841839000,-500.0,0.00028999,7]
[426804080,1782841839000,-500.0,0.00028999,7]
[426804072,1782841839000,-500.0,0.00028999,7]
[426804057,1782841839000,-217.99,0.00028999,7]
[426804024,1782841839000,-404.757314,0.00028999,7]
[426804034,1782841839000,-151.0,0.00028999,7]
[426804059,1782841839000,-500.0,0.00028999,7]
[426804036,1782841839000,-151.0,0.00028999,7]
[426804039,1782841839000,-168.922865,0.00028999,7]
[426804041,1782841839000,-1000.0,0.00028999,2]
[426804043,1782841839000,-1000.0,0.00028999,2]
[426804045,1782841839000,-1000.0,0.00028999,2]
[426804051,1782841839000,-500.0,0.00028999,7]
[426804055,1782841839000,-500.0,0.00028999,7]
[426804047,1782841839000,-1000.0,0.00028999,2]
[426804049,1782841839000,-1000.82163492,0.00028999,2]
[426804053,1782841839000,-500.0,0.00028999,7]
[426804269,1782841840000,-261139.26924479,0.00029,2]
[426804820,1782841846000,-1778.651535,0.00029,2]
[426804819,1782841846000,-1475.52881913,0.00029,2]
[426804821,1782841847000,-9274.90336267,0.00029,2]
[426804845,1782841850000,-359.63679836,0.00029,2]
[426804856,1782842199000,198.34,0.00029,30]
[426804857,1782842243000,152.0,0.00029193,30]
[426804858,1782842250000,1290.33461132,7.6e-05,2]
[426804859,1782842282000,-311.23990932,0.00021,2]
[426804862,1782842335000,-500.0,0.00021,2]
[426804863,1782842346000,-500.0,0.00021,2]
[426804864,1782842356000,-500.0,0.00021,2]
[426804865,1782842367000,-500.0,0.00021,2]
[426804866,1782842379000,-219.59814189,0.00021,2]
[426805043,1782843038000,-156.0,0.00029,2]
[426805045,1782843038000,-1475.52881913,0.00029,2]
[426805041,1782843038000,-1847.02037182,0.00029,2]
[426805038,1782843038000,-5832.28575012,0.00029,2]
[426805027,1782843038000,-285.531,0.00028177,2]
[426805025,1782843038000,-154.658,0.00028177,2]
[426805022,1782843038000,-1242.32454009,0.00028177,2]
[426805017,1782843038000,-133.85653771,0.00028,2]
[426805011,1782843038000,-199.46,0.00027397,2]
[426805015,1782843038000,-22.14346229,0.00028,2]
[426805030,1782843038000,-446.0,0.00028177,2]
[426805009,1782843038000,-150.0,0.0002739,2]
[426805021,1782843038000,-242.0,0.00028,2]
[426805019,1782843038000,-278.0,0.00028,2]
[426805005,1782843038000,-95.15221681,0.00021,2]
[426805007,1782843038000,-150.0,0.00025,2]
[426805013,1782843038000,-269.2443209,0.00027913,2]
[426805032,1782843038000,-367.43507002,0.00028999,2]
[426805028,1782843038000,-186.0,0.00028177,2]
[426805034,1782843038000,-1242.76932768,0.00028999,2]
[426805077,1782843038000,-6450.0396824,0.00029206,2]
[426805075,1782843038000,-4106.00475397,0.00029206,2]
[426805074,1782843038000,-3968.91843734,0.00029206,2]
[426805071,1782843038000,-569.59814189,0.00029205,2]
[426805069,1782843038000,-500.0,0.00029205,7]
[426805036,1782843038000,-1787.79824403,0.00028999,2]
[426805062,1782843038000,-754.16,0.00029203,3]
[426805058,1782843038000,-6581.06442704,0.00029194,2]
[426805060,1782843038000,-377.06,0.00029203,3]
[426805067,1782843038000,-500.0,0.00029205,7]
[426805066,1782843038000,-500.0,0.00029205,2]
[426805056,1782843038000,-153.93,0.00029192,7]
[426805054,1782843038000,-7585.53711755,0.00029106,2]
[426805053,1782843038000,-500.0,0.00029105,7]
[426805051,1782843038000,-500.0,0.00029105,2]
[426805049,1782843038000,-242.0,0.00029,2]
[426805047,1782843038000,-278.0,0.00029,2]
[426805064,1782843038000,-500.0,0.00029205,2]
[426805094,1782843039000,-150.0,0.00029206,2]
[426805079,1782843039000,-3460.0,0.00029206,2]
[426805083,1782843039000,-3460.0,0.00029206,2]
[426805092,1782843039000,-150.0,0.00029206,7]
[426805088,1782843039000,-3460.0,0.00029206,2]
[426805089,1782843039000,-2116.08469633,0.00029206,2]
[426805096,1782843039000,-409.5981462,0.00029212,7]
[426805081,1782843039000,-3460.0,0.00029206,2]
[426805097,1782843039000,-125377.50057212,0.00029213,2]
[426805086,1782843039000,-3460.0,0.00029206,2]
[426805106,1782843039000,-381.1,0.00029499,3]
[426805121,1782843039000,-435.0,0.000295,2]
[426805119,1782843039000,-1420.0,0.000295,2]
[426805116,1782843039000,-137778.87144658,0.000295,2]
[426805114,1782843039000,-14513.73601435,0.000295,2]
[426805100,1782843039000,-3172.76660099,0.00029213,2]
[426805112,1782843039000,-2872.24967706,0.000295,2]
[426805104,1782843039000,-158.36002238,0.000294,7]
[426805110,1782843039000,-383.65,0.00029499,7]
[426805102,1782843039000,-9548.59891585,0.00029213,2]
[426805108,1782843039000,-383.65,0.00029499,2]
[426805346,1782843041000,-380.36253887,0.000295,2]
[426805344,1782843041000,-1871.26634701,0.000295,2]
[426805536,1782843043000,-18198.5077,0.000295,2]
[426805575,1782843047000,-39206.82461511,0.000295,2]
[426805578,1782843131000,1899.61,0.00015,7]
[426805579,1782843132000,1895.83,0.00014863,7]
[426805594,1782843524000,457083.12,0.0003013,30]
[426805595,1782843765000,160.0,0.00029209,30]
[426805596,1782843786000,417.15472785,0.00029209,30]
[426805597,1782843804000,160.0,0.00029211,30]
[426805656,1782844232000,-200.99127991,0.0002142,7]
[426805682,1782844232000,-195.0,0.00029,2]
[426805678,1782844232000,-385.43,0.00028936,15]
[426805676,1782844232000,-446.0,0.00028177,2]
[426805669,1782844232000,-276.0,0.00028,2]
[426805675,1782844232000,-333.71825618,0.00028137,2]
[426805671,1782844232000,-195.0,0.00028,2]
[426805665,1782844232000,-1378.0136339,0.00027748,2]
[426805673,1782844232000,-232.0,0.00028,2]
[426805663,1782844232000,-183.939474,0.00027523,2]
[426805661,1782844232000,-316.72004476,0.0002205,7]
[426805658,1782844232000,-151.0,0.00021562,2]
[426805654,1782844232000,-156.2328304,0.00021,7]
[426805681,1782844232000,-276.0,0.00029,2]
[426805667,1782844232000,-159.0,0.00028,2]
[426805652,1782844232000,-740.42427126,0.00019567,2]
[426805680,1782844232000,-159.0,0.00029,2]
[426805679,1782844232000,-385.43,0.00028986,15]
[426805696,1782844232000,-385.43,0.00029386,15]
[426805697,1782844232000,-17.28603327,0.000294,2]
[426805694,1782844232000,-385.43,0.00029286,15]
[426805693,1782844232000,-385.43,0.00029236,15]
[426805690,1782844232000,-153.93,0.00029206,7]
[426805692,1782844232000,-605.66373671,0.0002923,2]
[426805691,1782844232000,-280.72061919,0.00029206,2]
[426805695,1782844232000,-385.43,0.00029336,15]
[426805688,1782844232000,-385.43,0.00029186,15]
[426805689,1782844232000,-605.0,0.000292,2]
[426805683,1782844232000,-232.0,0.00029,2]
[426805687,1782844232000,-385.43,0.00029136,15]
[426805686,1782844232000,-385.43,0.00029086,15]